[Event "Titled Tuesday Blitz August 16 Early 2022"]
[White "Mikhalsky, Vladimir"]
[Black "Acosta Cruz, Oscar Yosimar"]
[WhiteFideId "14144352"]
[BlackFideId "5111269"]
[WhiteElo "2301"]
[BlackElo "2147"]
[Result "1-0"]
[Round "11"]
[TimeControl "180+2"]
[Date "2022.08.18"]
[WhiteClock "0:00:00"]
[BlackClock "0:00:00"]

1. d4 {[%clk 0:00:00]}  Nf6 {[%clk 0:00:00]} 2. c4 {[%clk 0:00:00]}  e6 {[%clk 0:00:00]} 3. g3 {[%clk 0:00:00]}  d5 {[%clk 0:00:00]} 4. Nf3 {[%clk 0:00:00]}  Be7 {[%clk 0:00:00]} 5. Bg2 {[%clk 0:00:00]}  O-O {[%clk 0:00:00]} 6. O-O {[%clk 0:00:00]}  dxc4 {[%clk 0:00:00]} 7. Qa4 {[%clk 0:00:00]}  a6 {[%clk 0:00:00]} 8. Qxc4 {[%clk 0:00:00]}  b5 {[%clk 0:00:00]} 9. Qc2 {[%clk 0:00:00]}  Bb7 {[%clk 0:00:00]} 10. a4 {[%clk 0:00:00]}  Be4 {[%clk 0:00:00]} 11. Qb3 {[%clk 0:00:00]}  Bd5 {[%clk 0:00:00]} 12. Qc3 {[%clk 0:00:00]}  Ne4 {[%clk 0:00:00]} 13. Qc2 {[%clk 0:00:00]}  Nc6 {[%clk 0:00:00]} 14. Nc3 {[%clk 0:00:00]}  Nb4 {[%clk 0:00:00]} 15. Qb1 {[%clk 0:00:00]}  f5 {[%clk 0:00:00]} 16. axb5 {[%clk 0:00:00]}  axb5 {[%clk 0:00:00]} 17. Rxa8 {[%clk 0:00:00]}  Bxa8 {[%clk 0:00:00]} 18. Nxb5 {[%clk 0:00:00]}  c5 {[%clk 0:00:00]} 19. Bf4 {[%clk 0:00:00]}  Nd5 {[%clk 0:00:00]} 20. Be5 {[%clk 0:00:00]}  Qa5 {[%clk 0:00:00]} 21. Na3 {[%clk 0:00:00]}  cxd4 {[%clk 0:00:00]} 22. Nxd4 {[%clk 0:00:00]}  Nd2 {[%clk 0:00:00]} 23. Qe1 {[%clk 0:00:00]}  Bb4 {[%clk 0:00:00]} 24. Qc1 {[%clk 0:00:00]}  Nxf1 {[%clk 0:00:00]} 25. Kxf1 {[%clk 0:00:00]}  Qa6 {[%clk 0:00:00]} 26. Nc4 {[%clk 0:00:00]}  Rc8 {[%clk 0:00:00]} 27. b3 {[%clk 0:00:00]}  Bf8 {[%clk 0:00:00]} 28. Bf3 {[%clk 0:00:00]}  Nb6 {[%clk 0:00:00]} 29. Bxa8 {[%clk 0:00:00]}  Qxa8 {[%clk 0:00:00]} 30. f3 {[%clk 0:00:00]}  Nxc4 {[%clk 0:00:00]} 31. bxc4 {[%clk 0:00:00]}  Qa6 {[%clk 0:00:00]} 32. Qg5 {[%clk 0:00:00]}  Rxc4 {[%clk 0:00:00]} 33. Qd8 {[%clk 0:00:00]}  Rc8 {[%clk 0:00:00]} 34. Qd7 {[%clk 0:00:00]}  Qc4 {[%clk 0:00:00]} 35. Nxe6 {[%clk 0:00:00]}  Bb4 {[%clk 0:00:00]} 36. Nxg7 {[%clk 0:00:00]}  Ra8 {[%clk 0:00:00]} 37. Nxf5 {[%clk 0:00:00]}  Qc1+ {[%clk 0:00:00]} 38. Kg2 {[%clk 0:00:00]} 1-0


[Site "https://www.chess.com"]

[Event "Titled Tuesday Blitz August 16 Early 2022"]
[White "Mirimanian, Hayk"]
[Black "Costachi, Mihnea"]
[WhiteFideId "4700180"]
[BlackFideId "1217518"]
[WhiteElo "2280"]
[BlackElo "2437"]
[Result "1-0"]
[Round "11"]
[TimeControl "180+1"]
[Date "2022.08.16"]
[WhiteClock "0:01:01"]
[BlackClock "0:02:10"]

1. d4 {[%clk 0:02:58]}  f5 {[%clk 0:02:59]} 2. Nf3 {[%clk 0:02:57]}  Nf6 {[%clk 0:02:58]} 3. g3 {[%clk 0:02:57]}  g6 {[%clk 0:02:57]} 4. Bg2 {[%clk 0:02:57]}  Bg7 {[%clk 0:02:58]} 5. b3 {[%clk 0:02:57]}  O-O {[%clk 0:02:58]} 6. Bb2 {[%clk 0:02:57]}  d6 {[%clk 0:02:59]} 7. O-O {[%clk 0:02:57]}  Qe8 {[%clk 0:02:58]} 8. c4 {[%clk 0:02:56]}  e6 {[%clk 0:02:56]} 9. Nbd2 {[%clk 0:02:43]}  Nc6 {[%clk 0:02:52]} 10. Re1 {[%clk 0:02:39]}  e5 {[%clk 0:02:52]} 11. dxe5 {[%clk 0:02:38]}  Nxe5 {[%clk 0:02:52]} 12. Qc2 {[%clk 0:02:30]}  Nxf3+ {[%clk 0:02:47]} 13. Nxf3 {[%clk 0:02:23]}  h6 {[%clk 0:02:45]} 14. Nd4 {[%clk 0:02:16]}  Qf7 {[%clk 0:02:44]} 15. e3 {[%clk 0:02:11]}  Rb8 {[%clk 0:02:39]} 16. Rad1 {[%clk 0:02:09]}  Bd7 {[%clk 0:02:39]} 17. a3 {[%clk 0:01:58]}  Ng4 {[%clk 0:02:38]} 18. Bd5 {[%clk 0:01:54]}  Rbe8 {[%clk 0:02:28]} 19. Bxf7+ {[%clk 0:01:48]}  Rxf7 {[%clk 0:02:29]} 20. Nb5 {[%clk 0:01:41]}  Bxb2 {[%clk 0:02:24]} 21. Qxb2 {[%clk 0:01:40]}  Bc6 {[%clk 0:02:24]} 22. Nd4 {[%clk 0:01:37]}  Bd7 {[%clk 0:02:25]} 23. f3 {[%clk 0:01:35]}  Ne5 {[%clk 0:02:25]} 24. Kf2 {[%clk 0:01:31]}  g5 {[%clk 0:02:22]} 25. h3 {[%clk 0:01:23]}  Rfe7 {[%clk 0:02:22]} 26. Qc2 {[%clk 0:01:21]}  Rf7 {[%clk 0:02:20]} 27. b4 {[%clk 0:01:20]}  g4 {[%clk 0:02:12]} 28. hxg4 {[%clk 0:01:18]}  fxg4 {[%clk 0:02:13]} 29. f4 {[%clk 0:01:18]}  c5 {[%clk 0:02:12]} 30. Nb5 {[%clk 0:01:16]}  Bxb5 {[%clk 0:02:10]} 31. cxb5 {[%clk 0:01:16]}  c4 {[%clk 0:02:09]} 32. Rxd6 {[%clk 0:01:13]}  Nd3+ {[%clk 0:02:09]} 33. Rxd3 {[%clk 0:01:01]}  cxd3 {[%clk 0:02:10]} 34. Qxd3 {[%clk 0:01:02]}  Rd8 {[%clk 0:02:10]} 35. Qxd8+ {[%clk 0:01:01]} 1-0


[Site "https://www.chess.com"]

[Event "Titled Tuesday Blitz August 16 Early 2022"]
[White "Namitbir Singh Walia"]
[Black "Krsnik Cohar, Ivan Vihor"]
[WhiteFideId "35071068"]
[BlackFideId "14520044"]
[WhiteElo "1664"]
[BlackElo "2414"]
[Result "1-0"]
[Round "11"]
[TimeControl "180+1"]
[Date "2022.08.16"]
[WhiteClock "0:02:30"]
[BlackClock "0:02:49"]

1. e4 {[%clk 0:03:00]}  c5 {[%clk 0:03:00]} 2. d4 {[%clk 0:03:00]}  g6 {[%clk 0:03:00]} 3. dxc5 {[%clk 0:03:00]}  Qa5+ {[%clk 0:02:59]} 4. c3 {[%clk 0:02:53]}  Qxc5 {[%clk 0:02:59]} 5. Be3 {[%clk 0:02:51]}  Qc7 {[%clk 0:02:57]} 6. Bd4 {[%clk 0:02:47]}  Nf6 {[%clk 0:02:56]} 7. Bxf6 {[%clk 0:02:46]}  exf6 {[%clk 0:02:56]} 8. c4 {[%clk 0:02:42]}  Bb4+ {[%clk 0:02:55]} 9. Nd2 {[%clk 0:02:40]}  Qe5 {[%clk 0:02:49]} 10. Nf3 {[%clk 0:02:31]}  Nc6 {[%clk 0:02:49]} 11. Nxe5 {[%clk 0:02:30]} 1-0


[Site "https://www.chess.com"]

[Event "Titled Tuesday Blitz August 16 Early 2022"]
[White "Nugumanov, Bakhtiyar"]
[Black "Melikhov, Evgeny V."]
[WhiteFideId "13701797"]
[BlackFideId "4122046"]
[WhiteElo "2287"]
[BlackElo "1963"]
[Result "0-1"]
[Round "11"]
[TimeControl "180+2"]
[Date "2022.08.18"]
[WhiteClock "0:00:00"]
[BlackClock "0:00:00"]

1. Nf3 {[%clk 0:00:00]}  f5 {[%clk 0:00:00]} 2. d4 {[%clk 0:00:00]}  Nf6 {[%clk 0:00:00]} 3. g3 {[%clk 0:00:00]}  g6 {[%clk 0:00:00]} 4. Bg2 {[%clk 0:00:00]}  Bg7 {[%clk 0:00:00]} 5. c4 {[%clk 0:00:00]}  O-O {[%clk 0:00:00]} 6. O-O {[%clk 0:00:00]}  d6 {[%clk 0:00:00]} 7. Nc3 {[%clk 0:00:00]}  Qe8 {[%clk 0:00:00]} 8. b3 {[%clk 0:00:00]}  h6 {[%clk 0:00:00]} 9. Bb2 {[%clk 0:00:00]}  g5 {[%clk 0:00:00]} 10. Rc1 {[%clk 0:00:00]}  Na6 {[%clk 0:00:00]} 11. e3 {[%clk 0:00:00]}  c6 {[%clk 0:00:00]} 12. d5 {[%clk 0:00:00]}  Bd7 {[%clk 0:00:00]} 13. Nd4 {[%clk 0:00:00]}  Nc5 {[%clk 0:00:00]} 14. b4 {[%clk 0:00:00]}  Nce4 {[%clk 0:00:00]} 15. Nxe4 {[%clk 0:00:00]}  Nxe4 {[%clk 0:00:00]} 16. f3 {[%clk 0:00:00]}  Nf6 {[%clk 0:00:00]} 17. e4 {[%clk 0:00:00]}  fxe4 {[%clk 0:00:00]} 18. fxe4 {[%clk 0:00:00]}  Ng4 {[%clk 0:00:00]} 19. Qd3 {[%clk 0:00:00]}  Ne5 {[%clk 0:00:00]} 20. Qc2 {[%clk 0:00:00]}  Qg6 {[%clk 0:00:00]} 21. Nf5 {[%clk 0:00:00]}  Rf7 {[%clk 0:00:00]} 22. Nxg7 {[%clk 0:00:00]}  Qxg7 {[%clk 0:00:00]} 23. Rxf7 {[%clk 0:00:00]}  Qxf7 {[%clk 0:00:00]} 24. Rf1 {[%clk 0:00:00]}  Qg6 {[%clk 0:00:00]} 25. c5 {[%clk 0:00:00]}  Rf8 {[%clk 0:00:00]} 26. cxd6 {[%clk 0:00:00]}  exd6 {[%clk 0:00:00]} 27. Rxf8+ {[%clk 0:00:00]}  Kxf8 {[%clk 0:00:00]} 28. Bxe5 {[%clk 0:00:00]}  dxe5 {[%clk 0:00:00]} 29. Qf2+ {[%clk 0:00:00]}  Ke7 {[%clk 0:00:00]} 30. Qxa7 {[%clk 0:00:00]}  cxd5 {[%clk 0:00:00]} 31. Qc5+ {[%clk 0:00:00]}  Qd6 {[%clk 0:00:00]} 32. exd5 {[%clk 0:00:00]}  b6 {[%clk 0:00:00]} 33. Qf2 {[%clk 0:00:00]}  Qxb4 {[%clk 0:00:00]} 34. h3 {[%clk 0:00:00]}  Qd4 {[%clk 0:00:00]} 35. a3 {[%clk 0:00:00]}  Kd6 {[%clk 0:00:00]} 36. Kf1 {[%clk 0:00:00]}  Bb5+ {[%clk 0:00:00]} 37. Kg1 {[%clk 0:00:00]}  Bc4 {[%clk 0:00:00]} 38. Qxd4 {[%clk 0:00:00]}  exd4 {[%clk 0:00:00]} 39. Kf2 {[%clk 0:00:00]}  Bxd5 {[%clk 0:00:00]} 40. Bf1 {[%clk 0:00:00]}  Kc5 {[%clk 0:00:00]} 41. h4 {[%clk 0:00:00]}  Bc4 {[%clk 0:00:00]} 42. Bg2 {[%clk 0:00:00]}  Bd3 {[%clk 0:00:00]} 43. hxg5 {[%clk 0:00:00]}  hxg5 {[%clk 0:00:00]} 44. Ke1 {[%clk 0:00:00]}  Kc4 {[%clk 0:00:00]} 45. Kd2 {[%clk 0:00:00]}  Bf5 {[%clk 0:00:00]} 46. Bf1+ {[%clk 0:00:00]}  Kc5 {[%clk 0:00:00]} 47. Bg2 {[%clk 0:00:00]}  Kc4 {[%clk 0:00:00]} 48. Bf1+ {[%clk 0:00:00]}  Kb3 {[%clk 0:00:00]} 49. Bd3 {[%clk 0:00:00]}  Bxd3 {[%clk 0:00:00]} 50. Kxd3 {[%clk 0:00:00]}  Kxa3 {[%clk 0:00:00]} 51. Kxd4 {[%clk 0:00:00]}  b5 {[%clk 0:00:00]} 52. Ke5 {[%clk 0:00:00]}  b4 {[%clk 0:00:00]} 53. Kf5 {[%clk 0:00:00]}  b3 {[%clk 0:00:00]} 54. Kxg5 {[%clk 0:00:00]}  b2 {[%clk 0:00:00]} 55. Kh6 {[%clk 0:00:00]}  b1=Q {[%clk 0:00:00]} 56. g4 {[%clk 0:00:00]}  Qb8 {[%clk 0:00:00]} 57. g5 {[%clk 0:00:00]}  Qg8 {[%clk 0:00:00]} 58. g6 {[%clk 0:00:00]}  Kb4 {[%clk 0:00:00]} 0-1


[Site "https://www.chess.com"]

[Event "Titled Tuesday Blitz August 16 Early 2022"]
[White "O`Gorman, Tom"]
[Black "Bintang, Rasyid A. Hidayat"]
[WhiteFideId "2508249"]
[BlackFideId "7105355"]
[WhiteElo "2270"]
[BlackElo "1820"]
[Result "0-1"]
[Round "11"]
[TimeControl "180+2"]
[Date "2022.08.18"]
[WhiteClock "0:00:00"]
[BlackClock "0:00:00"]

1. Nf3 {[%clk 0:00:00]}  a6 {[%clk 0:00:00]} 2. g3 {[%clk 0:00:00]}  h6 {[%clk 0:00:00]} 3. Bg2 {[%clk 0:00:00]}  g6 {[%clk 0:00:00]} 4. O-O {[%clk 0:00:00]}  Bg7 {[%clk 0:00:00]} 5. d4 {[%clk 0:00:00]}  Nf6 {[%clk 0:00:00]} 6. c4 {[%clk 0:00:00]}  d6 {[%clk 0:00:00]} 7. Nc3 {[%clk 0:00:00]}  O-O {[%clk 0:00:00]} 8. b3 {[%clk 0:00:00]}  Bd7 {[%clk 0:00:00]} 9. Bb2 {[%clk 0:00:00]}  Bc6 {[%clk 0:00:00]} 10. d5 {[%clk 0:00:00]}  Bd7 {[%clk 0:00:00]} 11. e4 {[%clk 0:00:00]}  Nh7 {[%clk 0:00:00]} 12. h3 {[%clk 0:00:00]}  Ng5 {[%clk 0:00:00]} 13. Nxg5 {[%clk 0:00:00]}  hxg5 {[%clk 0:00:00]} 14. Qd2 {[%clk 0:00:00]}  e5 {[%clk 0:00:00]} 15. dxe6 {[%clk 0:00:00]}  Bxe6 {[%clk 0:00:00]} 16. Nd5 {[%clk 0:00:00]}  Bxd5 {[%clk 0:00:00]} 17. Bxg7 {[%clk 0:00:00]}  Kxg7 {[%clk 0:00:00]} 18. Qxd5 {[%clk 0:00:00]}  Nc6 {[%clk 0:00:00]} 19. Rad1 {[%clk 0:00:00]}  Qf6 {[%clk 0:00:00]} 20. Rfe1 {[%clk 0:00:00]}  Qe5 {[%clk 0:00:00]} 21. Qxe5+ {[%clk 0:00:00]}  dxe5 {[%clk 0:00:00]} 22. Rd7 {[%clk 0:00:00]}  Rac8 {[%clk 0:00:00]} 23. Red1 {[%clk 0:00:00]}  Nd4 {[%clk 0:00:00]} 24. Rd5 {[%clk 0:00:00]}  Ne2+ {[%clk 0:00:00]} 25. Kf1 {[%clk 0:00:00]}  Nc3 {[%clk 0:00:00]} 26. Bf3 {[%clk 0:00:00]}  Nxd1 {[%clk 0:00:00]} 27. Bxd1 {[%clk 0:00:00]}  Rfd8 {[%clk 0:00:00]} 28. Ke2 {[%clk 0:00:00]}  Rxd5 {[%clk 0:00:00]} 29. exd5 {[%clk 0:00:00]}  f6 {[%clk 0:00:00]} 30. Kf1 {[%clk 0:00:00]}  Kf7 {[%clk 0:00:00]} 31. Bg4 {[%clk 0:00:00]}  f5 {[%clk 0:00:00]} 32. Bf3 {[%clk 0:00:00]}  e4 {[%clk 0:00:00]} 33. Bg2 {[%clk 0:00:00]}  Kf6 {[%clk 0:00:00]} 34. Ke2 {[%clk 0:00:00]}  Ke5 {[%clk 0:00:00]} 35. Ke3 {[%clk 0:00:00]}  f4+ {[%clk 0:00:00]} 36. Kd2 {[%clk 0:00:00]}  Kd4 {[%clk 0:00:00]} 37. Bf1 {[%clk 0:00:00]}  e3+ {[%clk 0:00:00]} 38. fxe3+ {[%clk 0:00:00]}  fxe3+ {[%clk 0:00:00]} 39. Kc2 {[%clk 0:00:00]}  Rf8 {[%clk 0:00:00]} 0-1


[Site "https://www.chess.com"]

[Event "Titled Tuesday Blitz August 16 Early 2022"]
[White "Padmini, Rout"]
[Black "Rostomyan, Mikayel"]
[WhiteFideId "5029295"]
[BlackFideId "13313754"]
[WhiteElo "2181"]
[BlackElo "1426"]
[Result "1-0"]
[Round "11"]
[TimeControl "180+2"]
[Date "2022.08.18"]
[WhiteClock "0:00:00"]
[BlackClock "0:00:00"]

1. e4 {[%clk 0:00:00]}  c6 {[%clk 0:00:00]} 2. d4 {[%clk 0:00:00]}  d5 {[%clk 0:00:00]} 3. e5 {[%clk 0:00:00]}  g6 {[%clk 0:00:00]} 4. h4 {[%clk 0:00:00]}  h5 {[%clk 0:00:00]} 5. Nf3 {[%clk 0:00:00]}  Bg7 {[%clk 0:00:00]} 6. Be2 {[%clk 0:00:00]}  Nh6 {[%clk 0:00:00]} 7. Ng5 {[%clk 0:00:00]}  Bg4 {[%clk 0:00:00]} 8. Bxg4 {[%clk 0:00:00]}  Nxg4 {[%clk 0:00:00]} 9. e6 {[%clk 0:00:00]}  f6 {[%clk 0:00:00]} 10. Nf7 {[%clk 0:00:00]}  Qc8 {[%clk 0:00:00]} 11. Nxh8 {[%clk 0:00:00]}  Qxe6+ {[%clk 0:00:00]} 12. Qe2 {[%clk 0:00:00]}  Qf5 {[%clk 0:00:00]} 13. O-O {[%clk 0:00:00]}  Nd7 {[%clk 0:00:00]} 14. Re1 {[%clk 0:00:00]}  e5 {[%clk 0:00:00]} 15. c4 {[%clk 0:00:00]}  O-O-O {[%clk 0:00:00]} 16. Nf7 {[%clk 0:00:00]}  Nf8 {[%clk 0:00:00]} 17. Nxd8 {[%clk 0:00:00]}  Kxd8 {[%clk 0:00:00]} 18. cxd5 {[%clk 0:00:00]}  cxd5 {[%clk 0:00:00]} 19. Nc3 {[%clk 0:00:00]}  e4 {[%clk 0:00:00]} 20. f3 {[%clk 0:00:00]} 1-0


[Site "https://www.chess.com"]

[Event "Titled Tuesday Blitz August 16 Early 2022"]
[White "Pakleza, Zbigniew"]
[Black "Rostovtsev, Dmitry"]
[WhiteFideId "1119290"]
[BlackFideId "34278320"]
[WhiteElo "2411"]
[BlackElo "2295"]
[Result "0-1"]
[Round "11"]
[TimeControl "180+1"]
[Date "2022.08.16"]
[WhiteClock "0:00:03"]
[BlackClock "0:00:03"]

1. d4 {[%clk 0:03:00]}  Nf6 {[%clk 0:02:58]} 2. Nf3 {[%clk 0:03:00]}  g6 {[%clk 0:02:30]} 3. Bf4 {[%clk 0:03:00]}  Bg7 {[%clk 0:01:37]} 4. e3 {[%clk 0:03:00]}  O-O {[%clk 0:01:37]} 5. Be2 {[%clk 0:03:00]}  d6 {[%clk 0:01:37]} 6. h3 {[%clk 0:03:01]}  c5 {[%clk 0:01:38]} 7. c3 {[%clk 0:03:01]}  b6 {[%clk 0:01:38]} 8. Nbd2 {[%clk 0:03:01]}  Bb7 {[%clk 0:01:38]} 9. O-O {[%clk 0:03:01]}  Nbd7 {[%clk 0:01:39]} 10. a4 {[%clk 0:03:02]}  a6 {[%clk 0:01:38]} 11. Bg3 {[%clk 0:03:02]}  Ra7 {[%clk 0:01:37]} 12. Re1 {[%clk 0:02:59]}  Qa8 {[%clk 0:01:37]} 13. Bd3 {[%clk 0:03:00]}  Ne4 {[%clk 0:01:31]} 14. Nxe4 {[%clk 0:03:00]}  Bxe4 {[%clk 0:01:31]} 15. Bh4 {[%clk 0:03:01]}  Nf6 {[%clk 0:01:30]} 16. Qe2 {[%clk 0:02:56]}  Rb8 {[%clk 0:01:20]} 17. Rec1 {[%clk 0:02:44]}  Bxd3 {[%clk 0:01:19]} 18. Qxd3 {[%clk 0:02:45]}  b5 {[%clk 0:01:19]} 19. dxc5 {[%clk 0:02:21]}  dxc5 {[%clk 0:01:18]} 20. axb5 {[%clk 0:02:21]}  axb5 {[%clk 0:01:19]} 21. Rxa7 {[%clk 0:02:21]}  Qxa7 {[%clk 0:01:19]} 22. Bg3 {[%clk 0:02:22]}  Rb7 {[%clk 0:00:57]} 23. Qd8+ {[%clk 0:02:21]}  Bf8 {[%clk 0:00:57]} 24. Qc8 {[%clk 0:01:48]}  Rd7 {[%clk 0:00:46]} 25. c4 {[%clk 0:01:24]}  b4 {[%clk 0:00:38]} 26. Ne5 {[%clk 0:01:07]}  Rd6 {[%clk 0:00:14]} 27. Nc6 {[%clk 0:00:15]}  Qd7 {[%clk 0:00:14]} 28. Qxd7 {[%clk 0:00:16]}  Rxd7 {[%clk 0:00:13]} 29. Ra1 {[%clk 0:00:17]}  Ne4 {[%clk 0:00:11]} 30. Bf4 {[%clk 0:00:11]}  f6 {[%clk 0:00:12]} 31. f3 {[%clk 0:00:10]}  Nd2 {[%clk 0:00:10]} 32. Rc1 {[%clk 0:00:06]}  e5 {[%clk 0:00:09]} 33. Bg3 {[%clk 0:00:06]}  Nb3 {[%clk 0:00:08]} 34. Rb1 {[%clk 0:00:04]}  Rc7 {[%clk 0:00:08]} 35. Nd8 {[%clk 0:00:03]}  Be7 {[%clk 0:00:06]} 36. Rd1 {[%clk 0:00:02]}  Rc8 {[%clk 0:00:02]} 37. Ne6 {[%clk 0:00:02]}  Kf7 {[%clk 0:00:03]} 38. f4 {[%clk 0:00:02]}  Kxe6 {[%clk 0:00:03]} 39. fxe5 {[%clk 0:00:03]}  fxe5 {[%clk 0:00:04]} 40. Rd3 {[%clk 0:00:03]}  Na5 {[%clk 0:00:03]} 41. b3 {[%clk 0:00:03]}  Nc6 {[%clk 0:00:03]} 0-1


[Site "https://www.chess.com"]

[Event "Titled Tuesday Blitz August 16 Early 2022"]
[White "Petrovic, Aleksa"]
[Black "Sanchez, Robert"]
[WhiteFideId "967629"]
[BlackFideId "2034360"]
[WhiteElo "2262"]
[BlackElo "1966"]
[Result "1-0"]
[Round "11"]
[TimeControl "180+2"]
[Date "2022.08.18"]
[WhiteClock "0:00:00"]
[BlackClock "0:00:00"]

1. e4 {[%clk 0:00:00]}  e5 {[%clk 0:00:00]} 2. Nf3 {[%clk 0:00:00]}  Nc6 {[%clk 0:00:00]} 3. Bb5 {[%clk 0:00:00]}  Nf6 {[%clk 0:00:00]} 4. O-O {[%clk 0:00:00]}  d6 {[%clk 0:00:00]} 5. d4 {[%clk 0:00:00]}  exd4 {[%clk 0:00:00]} 6. Nxd4 {[%clk 0:00:00]}  Bd7 {[%clk 0:00:00]} 7. Nc3 {[%clk 0:00:00]}  Be7 {[%clk 0:00:00]} 8. Re1 {[%clk 0:00:00]}  O-O {[%clk 0:00:00]} 9. Bxc6 {[%clk 0:00:00]}  bxc6 {[%clk 0:00:00]} 10. b3 {[%clk 0:00:00]}  c5 {[%clk 0:00:00]} 11. Nf3 {[%clk 0:00:00]}  Bg4 {[%clk 0:00:00]} 12. h3 {[%clk 0:00:00]}  Bh5 {[%clk 0:00:00]} 13. Qd3 {[%clk 0:00:00]}  Nd7 {[%clk 0:00:00]} 14. Nd5 {[%clk 0:00:00]}  Bf6 {[%clk 0:00:00]} 15. c3 {[%clk 0:00:00]}  h6 {[%clk 0:00:00]} 16. Bf4 {[%clk 0:00:00]}  c4 {[%clk 0:00:00]} 17. Qxc4 {[%clk 0:00:00]}  Bxf3 {[%clk 0:00:00]} 18. gxf3 {[%clk 0:00:00]}  Rc8 {[%clk 0:00:00]} 19. Rad1 {[%clk 0:00:00]}  Be5 {[%clk 0:00:00]} 20. Bg3 {[%clk 0:00:00]}  Bxg3 {[%clk 0:00:00]} 21. fxg3 {[%clk 0:00:00]}  Ne5 {[%clk 0:00:00]} 22. Qe2 {[%clk 0:00:00]}  Re8 {[%clk 0:00:00]} 23. f4 {[%clk 0:00:00]}  Ng6 {[%clk 0:00:00]} 24. Qg4 {[%clk 0:00:00]}  c6 {[%clk 0:00:00]} 25. Nb4 {[%clk 0:00:00]}  Qb6+ {[%clk 0:00:00]} 26. Kg2 {[%clk 0:00:00]}  a5 {[%clk 0:00:00]} 27. Nc2 {[%clk 0:00:00]}  Qc5 {[%clk 0:00:00]} 28. c4 {[%clk 0:00:00]}  Rc7 {[%clk 0:00:00]} 29. h4 {[%clk 0:00:00]}  h5 {[%clk 0:00:00]} 30. Qg5 {[%clk 0:00:00]}  Qxg5 {[%clk 0:00:00]} 31. hxg5 {[%clk 0:00:00]}  Rce7 {[%clk 0:00:00]} 32. Kf3 {[%clk 0:00:00]}  Rd8 {[%clk 0:00:00]} 33. e5 {[%clk 0:00:00]}  Red7 {[%clk 0:00:00]} 34. exd6 {[%clk 0:00:00]}  Rxd6 {[%clk 0:00:00]} 35. Re8+ {[%clk 0:00:00]}  Rxe8 {[%clk 0:00:00]} 36. Rxd6 {[%clk 0:00:00]}  c5 {[%clk 0:00:00]} 37. Rd5 {[%clk 0:00:00]}  Rc8 {[%clk 0:00:00]} 38. Ne3 {[%clk 0:00:00]}  Ne7 {[%clk 0:00:00]} 39. Rd7 {[%clk 0:00:00]}  Nc6 {[%clk 0:00:00]} 40. Nd5 {[%clk 0:00:00]}  Nd4+ {[%clk 0:00:00]} 41. Ke4 {[%clk 0:00:00]}  Re8+ {[%clk 0:00:00]} 42. Re7 {[%clk 0:00:00]}  Rd8 {[%clk 0:00:00]} 43. f5 {[%clk 0:00:00]}  Ne2 {[%clk 0:00:00]} 44. Kf3 {[%clk 0:00:00]}  Nd4+ {[%clk 0:00:00]} 45. Kf4 {[%clk 0:00:00]}  Nc2 {[%clk 0:00:00]} 46. f6 {[%clk 0:00:00]}  g6 {[%clk 0:00:00]} 47. Rc7 {[%clk 0:00:00]}  Nb4 {[%clk 0:00:00]} 48. Ne7+ {[%clk 0:00:00]}  Kf8 {[%clk 0:00:00]} 49. Kf3 {[%clk 0:00:00]}  Nxa2 {[%clk 0:00:00]} 50. Rxc5 {[%clk 0:00:00]}  Nc1 {[%clk 0:00:00]} 51. Rb5 {[%clk 0:00:00]}  Ra8 {[%clk 0:00:00]} 52. Ke4 {[%clk 0:00:00]}  Ne2 {[%clk 0:00:00]} 53. Kd3 {[%clk 0:00:00]}  Nxg3 {[%clk 0:00:00]} 54. c5 {[%clk 0:00:00]} 1-0


[Site "https://www.chess.com"]